fUST/lending_fUST_20251108
["ID","MTS","AMOUNT","RATE_DAILY","PERIOD"]
[393369819,1762536891848,-5142.42136418,0.0002097,2]
[393369820,1762536891886,-1532.86618747,0.0002097,2]
[393369821,1762536891914,-258.99007341,0.0002097,2]
[393369822,1762536891967,-6416.29747824,0.0002097,2]
[393369823,1762536891999,-500.0,0.0002097,2]
[393369824,1762536892028,-500.0,0.0002097,2]
[393369825,1762536892061,-286.35332478,0.0002097,2]
[393369826,1762536892094,-752.01579879,0.0002097,2]
[393369827,1762536892161,-5923.27175286,0.0002097,2]
[393369828,1762536894500,-1230.77,0.0002096,10]
[393369829,1762536894530,-500.0,0.0002097,2]
[393369830,1762536894580,-6538.47,0.0002097,2]
[393369831,1762536894618,-136.81755165,0.0002097,2]
[393369832,1762536894650,-500.0,0.0002097,2]
[393369833,1762536894679,-2051.08734505,0.0002097,2]
[393369834,1762536894733,-4624.2002066,0.0002097,2]
[393369835,1762536894767,-500.0,0.0002097,2]
[393369836,1762536894796,-2324.72244835,0.0002097,2]
[393369837,1762536894834,-4350.5651033,0.0002097,2]
[393369838,1762536894896,-3324.72244835,0.0002097,2]
[393369839,1762536894923,-3350.5651033,0.0002097,2]
[393369840,1762536895027,-500.0,0.0002097,2]
[393369841,1762536895065,-2324.72244835,0.0002097,2]
[393369842,1762536895111,-4350.5651033,0.0002097,2]
[393369843,1762536895175,-500.0,0.0002097,2]
[393369844,1762536895204,-2324.72244835,0.0002097,2]
[393369845,1762536895240,-4350.5651033,0.0002097,2]
[393369846,1762536897753,-500.0,0.00020961,2]
[393369847,1762536897784,-500.0,0.00020961,2]
[393369848,1762536897813,-500.0,0.00020961,2]
[393369849,1762536897841,-324.72244835,0.0002097,2]
[393369850,1762536897909,-6350.5651033,0.0002097,2]
[393369851,1762536897952,-3324.72244835,0.0002097,2]
[393369852,1762536897974,-3350.5651033,0.0002097,2]
[393369853,1762536898146,-500.0,0.0002097,2]
[393369854,1762536898173,-2324.72244835,0.0002097,2]
[393369855,1762536898209,-4350.5651033,0.0002097,2]
[393369856,1762536898278,-3324.72244835,0.0002097,2]
[393369857,1762536898301,-3350.5651033,0.0002097,2]
[393369858,1762536898500,-535.76514546,0.0002097,2]
[393369859,1762536898530,-2253.19215743,0.0002097,2]
[393369860,1762536898568,-4422.09539422,0.0002097,2]
[393369861,1762536900602,-3324.72244835,0.0002097,2]
[393369862,1762536900630,-3350.5651033,0.0002097,2]
[393369863,1762536900719,-500.0,0.0002097,2]
[393369864,1762536900749,-2324.72244835,0.0002097,2]
[393369865,1762536900789,-4350.5651033,0.0002097,2]
[393369867,1762536900965,-3324.72244835,0.0002097,2]
[393369868,1762536900992,-3350.5651033,0.0002097,2]
[393369869,1762536901130,-3324.72244835,0.0002097,2]
[393369870,1762536901158,-3350.5651033,0.0002097,2]
[393369871,1762536901242,-3324.72244835,0.0002097,2]
[393369872,1762536901265,-3350.5651033,0.0002097,2]
[393369873,1762536901384,-3324.72244835,0.0002097,2]
[393369874,1762536901407,-3350.5651033,0.0002097,2]
[393369875,1762536903653,-1025.65,0.0002096,10]
[393369876,1762536903682,-300.0,0.00020969,2]
[393369877,1762536903710,-300.0,0.00020969,2]
[393369878,1762536903739,-300.0,0.00020969,2]
[393369879,1762536903821,-6148.71,0.0002097,2]
[393369880,1762536903858,-526.57755165,0.0002097,2]
[393369881,1762536903887,-2271.56734505,0.0002097,2]
[393369882,1762536903924,-4403.7202066,0.0002097,2]
[393369883,1762536903960,-3324.72244835,0.0002097,2]
[393369884,1762536903984,-3350.5651033,0.0002097,2]
[393369885,1762536904096,-3324.72244835,0.0002097,2]
[393369886,1762536904122,-3350.5651033,0.0002097,2]
[393369887,1762536904231,-300.0,0.00020969,2]
[393369888,1762536904261,-2724.72244835,0.0002097,2]
[393369889,1762536904297,-3950.5651033,0.0002097,2]
[393369890,1762536904335,-3324.72244835,0.0002097,2]
[393369891,1762536904366,-3350.5651033,0.0002097,2]
[393369892,1762536912772,-5000.0,0.00020759,2]
[393369893,1762536918130,0.01,0.00020952,2]
[393369894,1762536918152,4999.99,0.00020952,2]
[393369921,1762537020327,-271.02432078,0.00019242,2]
[393369925,1762537024254,236.03451374,0.00036974,30]
[393369932,1762537110329,-228.97567922,0.00019242,2]
[393369933,1762537110352,-9.576924,0.00019242,2]
[393369935,1762537114225,-201.59698138,0.00019242,2]
[393369937,1762537130102,-288.82609462,0.00019242,2]
[393369938,1762537130131,-500.0,0.00019242,2]
[393369939,1762537130161,-500.0,0.00019242,2]
[393369940,1762537130192,-500.0,0.00019242,2]
[393369941,1762537130220,-500.0,0.00019242,2]
[393369942,1762537130250,-380.28505879,0.00019242,2]
[393369943,1762537130279,-1000.0,0.00019757,2]
[393369944,1762537130314,-251.804668,0.00019815,2]
[393369945,1762537130341,-510.27385214,0.00019866,2]
[393369946,1762537130478,-4024.13519517,0.00019965,2]
[393369947,1762537132887,-1951.73960966,0.00019965,2]
[393369948,1762537132916,-300.0,0.00019965,2]
[393369949,1762537132944,-1200.0,0.00019966,2]
[393369950,1762537133010,-1185.90104324,0.00019967,2]
[393369951,1762537135950,-807.81436614,0.00019967,2]
[393369952,1762537135975,-8384.38126772,0.00019967,2]
[393369954,1762537162884,1000.0,0.00032,120]
[393369956,1762537176080,961.6213828,0.0002072,2]
[393369957,1762537183778,4217.42499639,0.00020715,2]
[393369962,1762537218959,500.0,0.00019242,2]
[393369963,1762537219196,194.68697351,0.00019242,2]
[393369967,1762537294694,5000.0,0.00020805,2]
[393369970,1762537317192,5000.0,0.00020805,2]
[393369971,1762537319796,10000.0,0.00032877,120]
[393369974,1762537325496,0.01,0.00020805,2]
[393369975,1762537325521,4999.99,0.00020805,2]
[393369981,1762537334393,5000.0,0.00020805,2]
[393369986,1762537336533,10000.0,0.00032877,120]
[393369996,1762537342309,0.02,0.00020805,2]
[393369997,1762537342334,4999.98,0.00020805,2]
[393370001,1762537344464,901.9686674,0.00019935,2]
[393370002,1762537348456,10000.0,0.00032877,120]
[393370003,1762537350472,4098.0613326,0.00020805,2]
[393370004,1762537350494,901.9386674,0.00020805,2]
[393370006,1762537370511,9690.0,0.00032877,120]
[393370010,1762537381003,-250.6541516,0.00019766,2]
[393370012,1762537383127,-166.56972742,0.00019766,2]
[393370013,1762537385180,-243.08541797,0.00019766,2]
[393370014,1762537389306,-379.09008525,0.00019766,2]
[393370019,1762537391969,-162.09123032,0.00019766,2]
[393370021,1762537410363,-396.90186154,0.00019766,2]
[393370022,1762537415083,-174.03950659,0.00019766,2]
[393370025,1762537432520,-3227.56801931,0.00019766,2]
[393370026,1762537432552,-500.0,0.00019966,2]
[393370027,1762537432580,-500.0,0.00019966,2]
[393370028,1762537432607,-300.0,0.000204,2]
[393370029,1762537435289,-5000.0,0.00020401,2]
[393370030,1762537438352,-5000.0,0.00020401,2]
[393370031,1762537441380,-5000.0,0.00020607,2]
[393370033,1762537455283,-293.39816872,0.00019406,2]
[393370034,1762537458142,-150.0,0.00016896,2]
[393370035,1762537458167,-77.76886672,0.00019406,2]
[393370036,1762537461490,-152.7107901,0.00019406,2]
[393370037,1762537464709,-268.171401,0.00019212,2]
[393370039,1762537466331,-300.0,0.00019212,2]
[393370040,1762537468449,-179.25259849,0.00019212,2]
[393370041,1762537472074,-183.30970447,0.00019212,2]
[393370042,1762537474738,-257.01662649,0.00019212,2]
[393370043,1762537477431,-267.4125826,0.00019212,2]
[393370044,1762537480154,-216.17313742,0.00019212,2]
[393370045,1762537481641,-343.14523591,0.00019212,2]
[393370046,1762537483178,-183.49002577,0.00019212,2]
[393370047,1762537486293,-233.48197045,0.00019212,2]
[393370049,1762537487962,1009.6,0.00037002,20]
[393370050,1762537488884,-173.67237718,0.00019212,2]
[393370051,1762537492895,-151.0,0.00019212,2]
[393370052,1762537495765,-180.65511358,0.00019212,2]
[393370056,1762537515340,-213.3638526,0.00019212,2]
[393370057,1762537517247,-294.17560999,0.00019212,2]
[393370058,1762537520291,-190.32195139,0.00019058,2]
[393370059,1762537521823,-37.28479535,0.00019058,2]
[393370060,1762537521849,-207.99109459,0.00019212,2]
[393370061,1762537524648,-150.0,0.000192,2]
[393370062,1762537524684,-77.20202614,0.00019212,2]
[393370063,1762537526899,-173.4791613,0.00019212,2]
[393370064,1762537529116,-271.03465328,0.00019212,2]
[393370065,1762537546008,-150.0,0.000192,2]
[393370066,1762537546029,-70.91916752,0.000192,2]
[393370068,1762537550043,-79.08083248,0.000192,2]
[393370069,1762537550065,-202.48050986,0.00019212,2]
[393370070,1762537551626,-294.79700951,0.00019212,2]
[393370071,1762537553273,-223.98958853,0.00019212,2]
[393370072,1762537558284,-150.0,0.000192,2]
[393370073,1762537558307,-104.70572084,0.00019212,2]
[393370074,1762537558327,-62.71464024,0.00019212,2]
[393370075,1762537570622,5000.0,0.0001919,2]
[393370077,1762537592957,5000.0,0.0001919,2]
[393370078,1762537615765,5000.0,0.0001919,2]
[393370084,1762537635876,-151.0,0.00019199,2]
[393370087,1762537637684,5000.0,0.0001919,2]
[393370088,1762537637969,-149.0,0.00019199,2]
[393370089,1762537637992,-21.61514281,0.000192,2]
[393370104,1762537645834,5000.0,0.0001919,2]
[393370106,1762537654213,5000.0,0.0001919,2]
[393370107,1762537662081,269.24004968,0.000191,2]
[393370108,1762537662572,4579.53993188,0.0001919,2]
[393370110,1762537678241,5000.0,0.0001919,2]
[393370114,1762537701522,5000.0,0.0001919,2]
[393370116,1762537724430,5000.0,0.0001919,2]
[393370117,1762537747098,5000.0,0.0001919,2]
[393370121,1762537769481,5000.0,0.0001919,2]
[393370123,1762537792141,5000.0,0.0001919,2]
[393370132,1762537814609,5000.0,0.0001919,2]
[393370133,1762537822905,2045.67098087,0.0001919,2]
[393370159,1762537832465,-1200.0,0.00019198,2]
[393370160,1762537832475,-300.0,0.00019198,2]
[393370161,1762537832485,-150.0,0.00019198,2]
[393370162,1762537832494,-300.0,0.00019199,2]
[393370163,1762537832503,-300.0,0.00019199,2]
[393370164,1762537832512,-300.0,0.00019199,2]
[393370165,1762537832521,-300.0,0.00019199,2]
[393370166,1762537832531,-933.0,0.00019199,2]
[393370167,1762537832541,-128.38485719,0.000192,2]
[393370168,1762537832550,-150.0,0.000192,2]
[393370169,1762537832559,-150.0,0.000192,2]
[393370170,1762537832568,-150.0,0.000192,2]
[393370171,1762537832577,-150.0,0.000192,2]
[393370172,1762537832587,-150.0,0.000192,2]
[393370173,1762537832595,-150.0,0.000192,2]
[393370174,1762537832605,-150.0,0.000192,2]
[393370176,1762537832617,-150.0,0.000192,2]
[393370177,1762537832626,-150.0,0.000192,2]
[393370179,1762537832635,-150.0,0.000192,2]
[393370181,1762537832645,-150.0,0.000192,2]
[393370183,1762537832654,-150.0,0.000192,2]
[393370184,1762537832663,-150.0,0.000192,2]
[393370185,1762537832672,-150.0,0.000192,2]
[393370186,1762537832682,-150.0,0.000192,2]
[393370187,1762537832691,-452.04607747,0.00019212,2]
[393370188,1762537832700,-150.0,0.000198,2]
[393370189,1762537832710,-150.0,0.000198,2]
[393370190,1762537832828,-150.0,0.000198,2]
[393370191,1762537832838,-150.0,0.000198,2]
[393370192,1762537832847,-150.0,0.000198,2]
[393370193,1762537832857,-150.0,0.000198,2]
[393370194,1762537832867,-500.0,0.00019966,2]
[393370195,1762537832876,-1308.41787,0.00020753,2]
[393370196,1762537832886,-1200.0,0.00020788,2]
[393370197,1762537832895,-429.66153424,0.00020863,2]
[393370198,1762537832904,-3331.54663904,0.00020864,2]
[393370199,1762537832913,-500.0,0.00020868,2]
[393370200,1762537832923,-276.0,0.00020922,2]
[393370201,1762537832932,-420.0,0.00020923,2]
[393370202,1762537832941,-243.0,0.00020923,2]
[393370203,1762537832951,-151.0,0.00020952,2]
[393370204,1762537832960,-170.61514281,0.00020952,2]
[393370205,1762537832969,-731.78,0.00020953,10]
[393370206,1762537832978,-806.92,0.00020953,10]
[393370207,1762537832987,-672.43,0.00020953,10]
[393370208,1762537832997,-560.36,0.00020953,10]
[393370209,1762537833006,-180.14036874,0.0002096,2]
[393370210,1762537833015,-298.494,0.0002096,2]
[393370211,1762537833024,-331.74934361,0.00020963,2]
[393370212,1762537833034,-500.0,0.00020963,2]
[393370213,1762537833043,-500.0,0.00020963,2]
[393370214,1762537833052,-4741.95044524,0.00020963,2]
[393370215,1762537833061,-500.0,0.00020963,2]
[393370216,1762537833071,-933.73420663,0.00020963,2]
[393370217,1762537833080,-272.54615147,0.00020963,2]
[393370218,1762537833089,-500.0,0.00020963,2]
[393370219,1762537833099,-500.0,0.00020963,2]
[393370220,1762537833108,-4741.95044524,0.00020963,2]
[393370221,1762537833120,-500.0,0.00020963,2]
[393370222,1762537833129,-933.73420663,0.00020963,2]
[393370223,1762537833138,-500.0,0.00020963,2]
[393370224,1762537833147,-500.0,0.00020963,2]
[393370225,1762537833156,-4741.95044524,0.00020963,2]
[393370226,1762537833166,-501.12123623,0.00020963,2]
[393370227,1762537833176,-500.0,0.00020963,2]
[393370228,1762537833186,-933.73420663,0.00020963,2]
[393370229,1762537833195,-500.0,0.00020963,2]
[393370230,1762537833206,-4741.95044524,0.00020963,2]
[393370231,1762537833215,-500.0,0.00020963,2]
[393370232,1762537833224,-933.73420663,0.00020963,2]
[393370233,1762537833234,-500.0,0.00020963,2]
[393370234,1762537833244,-4741.95044524,0.00020963,2]
[393370235,1762537833254,-500.0,0.00020963,2]
[393370236,1762537833264,-933.73420663,0.00020963,2]
[393370237,1762537833273,-4741.95044524,0.00020963,2]
[393370238,1762537833284,-500.0,0.00020963,2]
[393370239,1762537833295,-933.73420663,0.00020963,2]
[393370240,1762537833307,-4741.95044524,0.00020963,2]
[393370241,1762537833316,-500.0,0.00020963,2]
[393370242,1762537833326,-500.0,0.00020963,2]
[393370243,1762537833335,-4741.95044524,0.00020963,2]
[393370244,1762537833346,-933.73420663,0.00020963,2]
[393370245,1762537833355,-500.0,0.00020963,2]
[393370246,1762537833370,-500.0,0.00020963,2]
[393370247,1762537833380,-933.73420663,0.00020963,2]
[393370248,1762537833389,-4741.95044524,0.00020963,2]
[393370249,1762537833399,-267.21638062,0.00020963,2]
[393370250,1762537833408,-443.63689629,0.00020963,2]
[393370251,1762537833417,-4741.95044524,0.00020963,2]
[393370252,1762537833427,-933.73420663,0.00020963,2]
[393370253,1762537833437,-500.0,0.00020963,2]
[393370254,1762537833447,-500.0,0.00020963,2]
[393370255,1762537833458,-4741.95044524,0.00020963,2]
[393370256,1762537833468,-933.73420663,0.00020963,2]
[393370257,1762537833478,-500.0,0.00020963,2]
[393370258,1762537833487,-4741.95044524,0.00020963,2]
[393370259,1762537833497,-933.73420663,0.00020963,2]
[393370260,1762537833507,-4741.95044524,0.00020963,2]
[393370261,1762537833516,-500.0,0.00020963,2]
[393370262,1762537833525,-500.0,0.00020963,2]
[393370263,1762537833534,-4741.95044524,0.00020963,2]
[393370264,1762537833543,-933.73420663,0.00020963,2]
[393370265,1762537833553,-4741.95044524,0.00020963,2]
[393370266,1762537833563,-500.0,0.00020963,2]
[393370267,1762537833572,-500.0,0.00020963,2]
[393370268,1762537833582,-933.73420663,0.00020963,2]
[393370269,1762537833591,-4741.95044524,0.00020963,2]
[393370270,1762537833600,-500.0,0.00020963,2]
[393370271,1762537833610,-500.0,0.00020963,2]
[393370272,1762537833621,-933.73420663,0.00020963,2]
[393370273,1762537833631,-500.0,0.00020963,2]
[393370274,1762537833640,-933.73420663,0.00020963,2]
[393370275,1762537833649,-500.0,0.00020963,2]
[393370276,1762537833659,-500.0,0.00020963,2]
[393370277,1762537833668,-4741.95044524,0.00020963,2]
[393370278,1762537833678,-933.73420663,0.00020963,2]
[393370279,1762537833687,-542.32385767,0.00020963,2]
[393370280,1762537833705,-1160.08477039,0.00020963,2]
[393370326,1762537838606,-500.0,0.00020953,3]
[393370328,1762537838623,-3999.68,0.00020953,3]
[393370330,1762537838633,-466.97,0.00020953,10]
[393370332,1762537838643,-3039.54181718,0.00020963,2]
[393370334,1762537838653,-500.0,0.00020963,2]
[393370337,1762537838663,-933.73420663,0.00020963,2]
[393370339,1762537838673,-4741.95044524,0.00020963,2]
[393370341,1762537838682,-933.73420663,0.00020963,2]
[393370343,1762537838692,-4741.95044524,0.00020963,2]
[393370345,1762537838702,-933.73420663,0.00020963,2]
[393370347,1762537838713,-4741.95044524,0.00020963,2]
[393370349,1762537838723,-4741.95044524,0.00020963,2]
[393370351,1762537838735,-933.73420663,0.00020963,2]
[393370353,1762537838745,-4741.95044524,0.00020963,2]
[393370355,1762537838755,-720.14899262,0.00020963,2]
[393370640,1762537841480,-3e-08,0.00020753,2]
[393370748,1762537845244,-4999.99999997,0.00020753,2]
[393370749,1762537845255,-2249.84,0.00020953,3]
[393370750,1762537845264,-213.58521401,0.00020963,2]
[393370751,1762537845274,-4741.95044524,0.00020963,2]
[393370752,1762537845283,-933.73420663,0.00020963,2]
[393370753,1762537845292,-4741.95044524,0.00020963,2]
[393370754,1762537845303,-933.73420663,0.00020963,2]
[393370755,1762537845316,-4741.95044524,0.00020963,2]
[393370756,1762537845325,-933.73420663,0.00020963,2]
[393370757,1762537845334,-4741.95044524,0.00020963,2]
[393370758,1762537845345,-4741.95044524,0.00020963,2]
[393370759,1762537845354,-4741.95044524,0.00020963,2]
[393370760,1762537845364,-4741.95044524,0.00020963,2]
[393370761,1762537845375,-933.73420663,0.00020963,2]
[393370762,1762537845386,-971.84860133,0.00020963,2]
[393370770,1762537845654,-2825.37723121,0.00020963,2]
[393370771,1762537845667,-323.89483058,0.00020963,2]
[393370814,1762537910459,159.0,1.02e-06,2]
[393370815,1762537912467,159.0,1.02e-06,2]
[393370816,1762537912692,175.0,0.00028873,110]
[393370817,1762537915109,159.0,1.02e-06,2]
[393370818,1762537918087,159.0,1.02e-06,2]
[393370823,1762537920366,159.0,1.02e-06,2]
[393370824,1762537922442,159.0,1.02e-06,2]
[393370825,1762537924515,159.0,1.02e-06,2]
[393370826,1762537926599,159.0,1.02e-06,2]
[393370827,1762537928248,159.0,1.02e-06,2]
[393370828,1762537931158,159.0,1.02e-06,2]
[393370832,1762537990209,150.0,0.000186,2]
[393370833,1762538001025,150.0,0.000137,2]
[393370834,1762538012826,150.0,0.000137,2]
[393370835,1762538023262,150.0,0.000137,2]
[393370836,1762538033759,150.0,0.000137,2]
[393370837,1762538044477,150.0,0.000186,2]
[393370838,1762538050242,150.0,0.000186,2]
[393370839,1762538057759,5000.0,0.0001919,2]
[393370840,1762538061861,150.0,0.000137,2]
[393370841,1762538073045,150.0,0.000137,2]
[393370842,1762538081562,5000.0,0.0001919,2]
[393370843,1762538084565,150.0,0.000137,2]
[393370844,1762538098140,150.0,0.000137,2]
[393370845,1762538103979,150.0,0.000186,2]
[393370846,1762538104959,5000.0,0.0001919,2]
[393370848,1762538109826,150.0,0.000186,2]
[393370849,1762538114469,150.0,0.000137,2]
[393370851,1762538119979,150.0,0.000137,2]
[393370852,1762538125547,150.0,0.000137,2]
[393370853,1762538127840,4115.54903757,0.0001919,2]
[393370854,1762538130331,150.0,0.000137,2]
[393370855,1762538135743,150.0,0.000137,2]
[393370856,1762538140752,150.0,0.000137,2]
[393370857,1762538145938,150.0,0.000137,2]
[393370858,1762538151544,150.0,0.000137,2]
[393370859,1762538156668,150.0,0.000137,2]
[393370860,1762538162007,150.0,0.000137,2]
[393370862,1762538178369,150.0,0.000137,2]
[393370863,1762538179371,150.0,0.000137,2]
[393370864,1762538183798,150.0,0.000137,2]
[393370865,1762538188686,150.0,0.000137,2]
[393370866,1762538191510,150.0,0.000137,2]
[393370867,1762538195256,150.0,0.000137,2]
[393370868,1762538199656,150.0,0.000137,2]
[393370870,1762538339901,500.0,0.00037113,60]
[393370871,1762538340138,250.0,0.00037113,60]
[393370902,1762538510609,500.0,0.00037102,30]
[393370903,1762538513046,503.94237367,0.00037102,30]
[393370904,1762538601695,430.906149,0.00013699,2]
[393370906,1762538640471,-290.15057885,0.00018314,2]
[393370907,1762538640494,-223.4119916,0.00018413,2]
[393370908,1762538685954,-288.0584854,0.00018413,2]
[393370909,1762538688809,-156.69884262,0.00018413,2]
[393370910,1762538691745,-407.43103388,0.00018413,2]
[393370911,1762538700306,-124.3996465,0.00018413,2]
[393370912,1762538700328,-114.81648222,0.00018413,2]
[393370913,1762538703657,-35.18351778,0.00018413,2]
[393370914,1762538703683,-159.59436354,0.00018414,2]
[393370915,1762538707750,-151.46812148,0.00018414,2]
[393370916,1762538716439,5000.0,0.00018313,2]
[393370917,1762538717567,-238.98064205,0.00018414,2]
[393370918,1762538719103,-225.28556917,0.00018414,2]
[393370919,1762538730389,-117.67130376,0.00018414,2]
[393370920,1762538730412,-99.35873996,0.000186,2]
[393370921,1762538738872,5000.0,0.00018313,2]
[393370922,1762538745847,-50.64126004,0.000186,2]
[393370923,1762538745868,-146.68651766,0.00019058,2]
[393370924,1762538747336,-63.04283501,0.00019058,2]
[393370925,1762538747357,-268.73945135,0.00019199,2]
[393370926,1762538749406,-131.26054865,0.00019199,2]
[393370927,1762538749430,-150.52173771,0.000192,2]
[393370928,1762538751749,-168.21771364,0.000192,2]
[393370929,1762538754631,-218.21771364,0.000192,2]
[393370930,1762538775360,-254.39658683,0.00019008,2]
[393370931,1762538779718,-221.37596736,0.00019008,2]
[393370932,1762538790415,-336.43963131,0.00019008,2]
[393370933,1762538792524,-479.9248394,0.00019008,2]
[393370934,1762538805419,-334.07344297,0.00019008,2]
[393370935,1762538806994,-162.25956193,0.00019008,2]
[393370936,1762538810123,-220.11599029,0.00019008,2]
[393370937,1762538812761,-183.21805543,0.00019008,2]
[393370938,1762538817379,-314.83129476,0.00019008,2]
[393370939,1762538820105,-185.04586628,0.00019008,2]
[393370940,1762538822833,-151.57209494,0.00019008,2]
[393370941,1762538824331,-188.03514188,0.00019008,2]
[393370942,1762538827241,-228.62101657,0.00019008,2]
[393370943,1762538830641,-340.54107126,0.00019008,2]
[393370944,1762538834139,-169.56028027,0.00019008,2]
[393370945,1762538850298,-260.34015649,0.00019008,2]
[393370946,1762538852527,-330.68380564,0.00019008,2]
[393370947,1762538854626,-380.94423162,0.00019008,2]
[393370948,1762538856212,-258.02096477,0.00019008,2]
[393370949,1762538856233,-50.81303965,0.000192,2]
[393370950,1762538858665,-44.05152836,0.000192,2]
[393370951,1762538858695,-150.0,0.000192,2]
[393370952,1762538858720,-8.56287827,0.000192,2]
[393370953,1762538860809,-141.43712173,0.000192,2]
[393370954,1762538860831,-30.04532491,0.000192,2]
[393370955,1762538864222,-119.95467509,0.000192,2]
[393370956,1762538864244,-35.46013679,0.00019327,2]
[393370957,1762538880327,-333.66712899,0.00019134,2]
[393370958,1762538882415,-186.33158586,0.00019134,2]
[393370959,1762538883408,192.08,0.00016084,2]
[393370960,1762538883748,192.08,0.00016084,2]
[393370961,1762538883873,-163.80336321,0.00019134,2]
[393370962,1762538884127,192.08,0.00016084,2]
[393370963,1762538885911,-180.91238645,0.00019134,2]
[393370964,1762538887427,-300.0,0.00019134,2]
[393370965,1762538890857,-170.21542156,0.00019134,2]
[393370966,1762538892966,-162.21421607,0.00019134,2]
[393370967,1762538895136,-222.85461271,0.00019134,2]
[393370968,1762538897812,-261.5197632,0.00018999,2]
[393370969,1762538899936,-233.38071098,0.00018481,5]
[393370970,1762538902100,-53.84205397,0.00018481,5]
[393370971,1762538902122,-291.54250545,0.00018999,2]
[393370972,1762538903944,-300.58959537,0.00018999,2]
[393370973,1762538925317,-262.9001271,0.00018999,2]
[393370974,1762538928093,-391.67557583,0.00018999,2]
[393370975,1762538930268,-162.58174492,0.00018999,2]
[393370976,1762538932571,-286.22295196,0.00018999,2]
[393370977,1762538934841,-170.74956027,0.00018999,2]
[393370978,1762538936506,-164.84330196,0.00018999,2]
[393370979,1762538955345,-300.0,0.00018998,2]
[393370980,1762538955368,-171.12601976,0.00018999,2]
[393370981,1762538956885,-232.24266194,0.00018999,2]
[393370982,1762538958412,-245.51880397,0.00018999,2]
[393370983,1762538961795,-174.09629505,0.00018999,2]
[393370984,1762538964371,-212.724126,0.00018999,2]
[393370985,1762538966422,-256.02365009,0.00018999,2]
[393370986,1762538968549,-325.90370495,0.00018999,2]
[393370987,1762538985348,-199.32172102,0.00018999,2]
[393370988,1762538987399,-200.31215905,0.00018999,2]
[393370989,1762539000417,-374.8536954,0.00018999,2]
[393370990,1762539003774,-161.74352294,0.00018998,2]
[393370991,1762539005265,-138.25647706,0.00018998,2]
[393370992,1762539005289,-44.31957214,0.00018998,2]
[393370993,1762539006906,-236.50359093,0.00018998,2]
[393370994,1762539008963,-19.17683693,0.00018998,2]
[393370995,1762539008986,-261.64173171,0.00018998,2]
[393370996,1762539011172,-190.13755335,0.00018998,2]
[393370997,1762539012729,-446.08062209,0.00018998,2]
[393370998,1762539014827,-24.14009285,0.00018998,2]
[393370999,1762539014849,-275.85990715,0.00018998,2]
[393371000,1762539016865,-24.14009285,0.00018998,2]
[393371001,1762539016887,-211.98090437,0.00018998,2]
[393371002,1762539018461,-275.60228214,0.00018998,2]
[393371003,1762539020661,-399.3756819,0.00018998,2]
[393371004,1762539022110,-294.55232367,0.00018998,2]
[393371005,1762539023603,-18.48880792,0.00018998,2]
[393371006,1762539023625,-206.95544964,0.00018998,2]
[393371007,1762539026898,-93.04455036,0.00018998,2]
[393371008,1762539026923,-138.65612143,0.00018999,2]
[393371042,1762539031746,-22988.65789248,0.00018999,2]
[393371044,1762539031755,-3280.00128515,0.00019134,2]
[393371046,1762539031766,-114.53986321,0.00019327,2]
[393371048,1762539031775,-203.2893844,0.00019561,2]
[393371050,1762539031785,-160.0,0.00019658,2]
[393371052,1762539031794,-399.72441935,0.00019658,2]
[393371054,1762539031807,-999.0,0.00019681,2]
[393371057,1762539031816,-3638.43793112,0.00019828,2]
[393371059,1762539031825,-331.6782811,0.00019928,2]
[393371061,1762539031835,-430.906149,0.00020187,2]
[393371064,1762539031844,-420.0,0.00020708,2]
[393371067,1762539031854,-222.39,0.000208,2]